Cogmind - Beta 12 @@@ ROGUE MODE // 2024.02.13 @ 22:29:24 // Winter2019/RPGLIKE Player: drchaos820 Result: Self-destructed Performance ------------- Evolutions (2) 1000 Regions Visited (4) 800 Robots Destroyed (40) 200 Value Destroyed (786) 786 Prototype IDs (0) 0 Alien Tech Used (0) 0 Bonus (-84) -84 TOTAL SCORE: 2702 Bonus ------- High Alert Combat Kills 62 Friendly Fire -146 Cogmind --------- Core Integrity 635/850 Matter 104/550 Energy 250/250 System Corruption 0% Temperature Cool (0) Movement Rolling (95) Ox1 Location -8/Materials Parts ------- > --- POWER (1) -------- Ion Engine > --- PROPULSION (2) --- Wheel Wheel > --- UTILITY (3) ------ Heat Sink Improved Signal Interpreter Light Armor Plating > --- WEAPON (4) ------- Autogun Autogun Autogun Rocket Launcher > --- INVENTORY (3) ---- Wheel Assault Rifle Peak State ------------ > --- POWER ------------ Light Ion Engine > --- PROPULSION ------- Wheel Wheel > --- UTILITY ---------- Heat Sink Improved Signal Interpreter Light Armor Plating > --- WEAPON ----------- Autogun Autogun Autogun Rocket Launcher > --- INVENTORY -------- Assault Rifle [Rating: 16] Favorites ----------- Power Light Ion Engine Engine Light Ion Engine Propulsion Wheel Wheel Wheel Utility Improved Signal Interpreter Device Seismic Detector Processor Improved Signal Interpreter Protection Light Armor Plating Weapon Rocket Launcher Energy Gun Small Laser Ballistic Gun Assault Rifle Launcher Rocket Launcher Build | -11 -10 -10 -9 -8 ------- Run | Jun Mat Min Mat Mat Slots Evolved 6 | 3 . . 3 . Power . | . . . . . Propulsion 1 | . . . 1 . Utility 2 | . . . 2 . Weapon 3 | 3 . . . . Parts Attached 19 | 7 1 2 9 . Power 2 | 1 . . 1 . Engine 2 | 1 . . 1 . Core . | . . . . . Reactor . | . . . . . Propulsion 5 | 2 . . 3 . Treads . | . . . . . Leg . | . . . . . Wheel 5 | 2 . . 3 . Hover . | . . . . . Flight . | . . . . . Utility 4 | 1 . 1 2 . Device 2 | 1 . . 1 . Storage . | . . . . . Processor 1 | . . 1 . . Hackware . | . . . . . Protection 1 | . . . 1 . Artifact . | . . . . . Weapon 8 | 3 1 1 3 . Energy Gun 2 | 1 1 . . . Energy Cannon . | . . . . . Ballistic Gun 5 | 2 . . 3 . Ballistic Cannon . | . . . . . Launcher 1 | . . 1 . . Special Weapon . | . . . . . Impact Weapon . | . . . . . Slashing Weapon . | . . . . . Piercing Weapon . | . . . . . Special Melee Weapon . | . . . . . Unidentified Prototypes . | . . . . . Parts Lost . | . . . . . Power . | . . . . . Propulsion . | . . . . . Utility . | . . . . . Weapon . | . . . . . Highest Loss Streak . | . . . . . To Critical Strikes . | . . . . . Average Slot Usage (%) 96 | . 95 100 92 100 Engine 12 | . 14 14 10 10 Wheel 15 | . 14 14 18 20 Device 9 | . 14 10 6 10 Processor 5 | . . 3 10 10 Protection 2 | . . . 6 10 Energy Gun 19 | . 23 28 9 . Ballistic Gun 18 | . 28 14 21 30 Launcher 10 | . . 13 10 10 Naked Turns . | . . . . . Heaviest Build 22 | 8 11 14 22 22 Greatest Support 26 | 16 10 10 26 20 Greatest Overweight (x) 1 | . 1 1 1 1 Average Overweight (x) . | . . 1 . 1 Largest Inventory Capacity 3 | 1 1 1 2 3 Average Capacity 1 | 1 1 1 1 2 Most Carried 2 | 1 1 1 2 2 Average Carried 1 | . 1 1 1 2 Final Capacity 3 | 1 1 1 2 3 Final Carried 2 | 1 1 1 2 2 Class Distribution -------------------- 67% | Gunner 19% | Skirmisher 9% | Scavenger-Skirmisher Dominant Class ---------------- Gunner | -10/Materials Gunner | -10/Mines Skirmisher | -9/Materials Scavenger-Skirmisher | -8/Materials Resources | -11 -10 -10 -9 -8 ----------- Run | Jun Mat Min Mat Mat Matter Collected 1069 | 286 34 167 582 . Remotely . | . . . . . Salvage Created 928 | 91 63 50 724 . Parts 76 | 5 7 5 59 . Haulers Intercepted 3 | . . . 3 . Recyclers Shooed 5 | . . 1 4 . Parts Field Recycled . | . . . . . Retrieved Matter . | . . . . . Parts Self-Destructed . | . . . . . Prevented . | . . . . . Kills | -11 -10 -10 -9 -8 ------- Run | Jun Mat Min Mat Mat Combat Hostiles Destroyed 24 | . 2 5 17 . Guns 8 | . 2 . 6 . AOE 16 | . . 5 11 . Classes Destroyed 10 | 2 1 1 6 . Worker 2 | . . . 2 . Builder 2 | . . . 2 . Tunneler 3 | 1 . . 2 . Hauler 3 | . . . 3 . Recycler 2 | 1 . . 1 . Operator 1 | . . . 1 . Watcher 2 | . . . 2 . Swarmer 10 | . . 3 7 . Grunt 9 | . 2 2 5 . Sentry 5 | . . . 5 . Thug 1 | . . . 1 . Best Kill Streak 14 | 2 2 3 14 . Combat Bots Only 7 | . 2 3 7 . Max Kills in Single Turn 3 | 1 1 2 3 . Gunslinging . | . . . . . Exploded 2 | . . 2 2 . Melee . | . . . . . Uniques/NPCs Destroyed . | . . . . . Combat | -11 -10 -10 -9 -8 -------- Run | Jun Mat Min Mat Mat Damage Taken 616 | . 78 59 479 . Core 469 | . 62 46 361 . Absorbed by Shields . | . . . . . Redirected to Core 376 | . 50 40 286 . Core Remaining (%) 91 | 100 . 100 74 . Volleys Fired 73 | 4 8 13 48 . Largest 4 | 3 4 4 4 . Hottest 158 | 80 145 158 158 . Shots Fired 209 | 12 26 27 144 . Gun 173 | 12 26 14 121 . Cannon . | . . . . . Launcher 36 | . . 13 23 . Special . | . . . . . Kinetic 133 | 8 16 8 101 . Thermal 40 | 4 10 6 20 . Explosive 36 | . . 13 23 . Electromagnetic . | . . . . . Robot Hit Streak 13 | 4 13 . 10 . Robot Miss Streak 7 | 2 3 . 7 . Penetration Max . | . . . . . Secondary Targets . | . . . . . Shots Hit Robots 88 | 8 15 . 65 . Core Hits 60 | 4 6 5 45 . Critical Kills . | . . . . . Critical Parts Destroyed . | . . . . . Critical Strikes . | . . . . . Melee Attacks . | . . . . . Impact . | . . . . . Slashing . | . . . . . Piercing . | . . . . . Sneak Attacks . | . . . . . Combat Hostiles . | . . . . . Follow-up Attacks . | . . . . . Damage Inflicted 2723 | 76 156 380 2111 . Guns 1236 | 76 156 11 993 . Cannons . | . . . . . Explosions 1487 | . . 369 1118 . Melee . | . . . . . Ramming . | . . . . . Kinetic 1034 | 55 101 11 867 . Thermal 202 | 21 55 . 126 . Explosive 1487 | . . 369 1118 . Electromagnetic . | . . . . . Impact . | . . . . . Slashing . | . . . . . Piercing . | . . . . . Highest Corruption . | . . . . . Average Corruption . | . . . . . Corruption Purged . | . . . . . Corruption Blocked . | . . . . . Overload Shots . | . . . . . Overflow Damage 52 | . . . 52 . Projectiles . | . . . . . Explosions 52 | . . . 52 . Melee . | . . . . . Knockbacks . | . . . . . Impact . | . . . . . Kinetic . | . . . . . Secondary . | . . . . . Self-Inflicted Damage 156 | . . 33 123 . Shots 5 | . . 1 4 . Rammed . | . . . . . Targets Rammed . | . . . . . Kicked . | . . . . . Crushed . | . . . . . Highest Temperature 620 | 36 150 172 620 . Average Temperature 124 | 20 79 78 154 . Received Heat Transfer 138 | . 42 . 96 . Effects 18 | . . . 18 . Shutdowns 3 | . . . 3 . Energy Bleed 1 | . . . 1 . Interference 2 | . . . 2 . Matter Decay 1 | . . . 1 . Short Circuit 1 | . . . 1 . Damage (major) 10 | . . . 10 . Siege Activations . | . . . . . Robots Corrupted . | . . . . . Combat Hostiles . | . . . . . Parts Fried . | . . . . . Impact Corruptions . | . . . . . Robots Melted . | . . . . . Combat Hostiles . | . . . . . Parts Melted . | . . . . . Heat Transferred 472 | 50 125 . 297 . Parts Sabotaged . | . . . . . Parts Stolen . | . . . . . Parts Stripped . | . . . . . Power Chain Reactions . | . . . . . Missiles Intercepted . | . . . . . Alert | -11 -10 -10 -9 -8 ------- Run | Jun Mat Min Mat Mat Peak Influence 713 | 10 93 228 713 250 Initial 250 | . 6 36 16 250 Average 177 | 2 61 102 319 250 Maximum Alert Level 3 | . . 1 3 1 Low Security (%) 67 | 100 100 90 29 . Level 1 14 | . . 9 21 100 Level 2 17 | . . . 47 . Level 3 . | . . . . . Level 4 . | . . . . . Level 5 . | . . . . . High Security . | . . . . . Max Security . | . . . . . Squads Dispatched 4 | . 1 1 2 . Investigation 2 | . . 1 1 . Extermination . | . . . . . Reinforcement 2 | . 1 . 1 . Assault . | . . . . . Garrison . | . . . . . Intercept . | . . . . . Searches Triggered . | . . . . . Construction Impeded . | . . . . . Haulers Reinforced . | . . . . . Active Scanning Responses . | . . . . . Cargo Convoy Interrupts . | . . . . . Stealth | -11 -10 -10 -9 -8 --------- Run | Jun Mat Min Mat Mat Distress Signals 4 | . . . 3 1 Communications Jammed . | . . . . . Distress Signals . | . . . . . Times Spotted 37 | . 3 5 28 1 Peak Tracking Total 7 | . 2 3 7 . Tactical Retreats 3 | . . . 3 . Traps | -11 -10 -10 -9 -8 ------- Run | Jun Mat Min Mat Mat Traps Triggered . | . . . . . Indirectly . | . . . . . Trap Hack Attempts . | . . . . . Triggered . | . . . . . Disarmed . | . . . . . Reprogrammed . | . . . . . Reused . | . . . . . Traps Extracted . | . . . . . Installed . | . . . . . Triggered . | . . . . . Machines | -11 -10 -10 -9 -8 ---------- Run | Jun Mat Min Mat Mat Machines Disabled 3 | . 1 . 2 . Max in Single Turn 1 | . 1 . 1 . Machines Repaired . | . . . . . Machines Sabotaged . | . . . . . Overloaded Fab Kills . | . . . . . Hacking | -11 -10 -10 -9 -8 --------- Run | Jun Mat Min Mat Mat Machines Accessed 4 | . 2 1 . 1 Terminals 3 | . 2 . . 1 Fabricators . | . . . . . Repair Stations . | . . . . . Recycling Units . | . . . . . Scanalyzers . | . . . . . Garrison Access . | . . . . . Total Hacks 5 | . 3 1 . 1 Successful 2 | . 1 1 . . Failed 3 | . 2 . . 1 Catastrophic 2 | . 1 . . 1 Database Lockouts . | . . . . . Manual 4 | . 3 . . 1 Terminals 4 | . 3 . . 1 Fabricators . | . . . . . Repair Stations . | . . . . . Recycling Units . | . . . . . Scanalyzers . | . . . . . Garrison Access . | . . . . . Terminal Hacks 2 | . 1 1 . . Open Door 1 | . . 1 . . Branch Access Points 1 | . 1 . . . Fabricator Hacks . | . . . . . Repair Station Hacks . | . . . . . Recycling Unit Hacks . | . . . . . Scanalyzer . | . . . . . Garrison Access Hacks . | . . . . . Unauthorized Hacks . | . . . . . Terminals . | . . . . . Fabricators . | . . . . . Repair Stations . | . . . . . Recycling Units . | . . . . . Scanalyzers . | . . . . . Garrison Access . | . . . . . Data Cores Recovered . | . . . . . Used . | . . . . . Hacking Detections 2 | . 1 . . 1 Full Trace Events . | . . . . . Feedback Events . | . . . . . Feedback Blocked . | . . . . . Robot Schematics Acquired . | . . . . . Robots Built . | . . . . . Authchips . | . . . . . Time . | . . . . . Total Robot Build Rating . | . . . . . Part Schematics Acquired . | . . . . . Parts Built . | . . . . . Authchips . | . . . . . Time . | . . . . . Total Part Build Rating . | . . . . . Parts Repaired . | . . . . . Time . | . . . . . Parts Recycled . | . . . . . Recycled Matter . | . . . . . Retrieved Matter . | . . . . . Retrieved Components . | . . . . . Parts Scanalyzed . | . . . . . Part Schematics Acquired . | . . . . . Parts Damaged . | . . . . . Bothacking | -11 -10 -10 -9 -8 ------------ Run | Jun Mat Min Mat Mat Used RIF Installer . | . . . . . Robots Hacked . | . . . . . Non-combat . | . . . . . Combat . | . . . . . Robot Hacks Applied . | . . . . . Relay Couplers Released . | . . . . . Fabnet Peak Effective % . | . . . . . Robots Rewired . | . . . . . Allies Hacked . | . . . . . Hacks Repelled . | . . . . . Allies | -11 -10 -10 -9 -8 -------- Run | Jun Mat Min Mat Mat Total Allies . | . . . . . Largest Group . | . . . . . Highest-Rated Group . | . . . . . Highest-Rated Ally . | . . . . . Total Orders . | . . . . . Ally Attacks . | . . . . . Total Damage . | . . . . . Kills . | . . . . . Allies Corrupted . | . . . . . Allies Melted . | . . . . . Intel | -11 -10 -10 -9 -8 ------- Run | Jun Mat Min Mat Mat Robot Analysis Total . | . . . . . Derelict Logs Recovered 1 | . . 1 . . Drone Launches . | . . . . . Drone Recoveries . | . . . . . Exploration | -11 -10 -10 -9 -8 ------------- Run | Jun Mat Min Mat Mat Turns Passed 1196 | 66 113 547 447 23 Spaces Moved 891 | 55 81 493 242 20 Core 3 | 3 . . . . Treads . | . . . . . Legs . | . . . . . Wheels 888 | 52 81 493 242 20 Hover . | . . . . . Flight . | . . . . . Fastest Speed 50 | 50 80 95 80 95 Average Speed 92 | 79 90 95 90 95 Slowest Speed 100 | 100 95 95 95 95 Overloaded Moves . | . . . . . Propulsion Burnouts . | . . . . . Robots Hopped . | . . . . . Cave-ins Triggered . | . . . . . Exploration Rate (%) 28 | 4 19 84 32 3 Regions Visited 4 Branch Regions 1 Pre-discovered Areas 1 | . . 1 . . Known Exits Taken 3 | . 1 1 1 . Unknown Exits Taken 1 | 1 . . . . Scrap Searched 2 | . . 2 . . Spaces Dug 49 | . . 49 . . Terrain Destroyed 297 | . . 132 165 . Melee . | . . . . . Projectile . | . . . . . AOE 297 | . . 132 165 . Terrain Rammed . | . . . . . Walls Destroyed . | . . . . . Machines Disabled . | . . . . . Actions | -11 -10 -10 -9 -8 --------- Run | Jun Mat Min Mat Mat Total 1123 | 65 103 549 383 23 Wait 122 | . 10 37 72 3 Move 887 | 54 80 492 241 20 Hop . | . . . . . Pick Up 1 | . . . 1 . Fast Attach 14 | 6 1 2 5 . Attach 1 | . . . 1 . Detach . | . . . . . Swap 4 | 1 . . 3 . Drop 7 | . . 2 5 . Fire 73 | 4 8 13 48 . Melee . | . . . . . Ram . | . . . . . Kick . | . . . . . Crush . | . . . . . Escape Stasis . | . . . . . Rewire . | . . . . . Trap . | . . . . . Miscellaneous 14 | . 4 3 7 . Route ------- -11/Junkyard -10/Materials (discovered 2 exits: *Min x2) -10/Mines (discovered 2 exits: *Mat x2) -9/Materials -8/Materials History --------- Turn | Location | Event 1 | -11/Junkyard | Upgraded with Weapon slot (x3) 2 | -11/Junkyard | Discovered new exit (range 17) 67 | -11/Junkyard | Entered Materials 84 | -10/Materials | Identified exit to Mines 180 | -10/Materials | Entered Mines 187 | -10/Mines | Received a Rocket Launcher from a helpful Derelict 202 | -10/Mines | Met a Derelict bent on vengeance 272 | -10/Mines | Discovered new exit (range 8) 312 | -10/Mines | Build established: Gunner 455 | -10/Mines | Discovered new exit (range 8) 484 | -10/Mines | Found a hidden stash of uninstalled traps 587 | -10/Mines | Met a Derelict shopkeep closing up shop 619 | -10/Mines | Identified exit to Materials 727 | -10/Mines | Entered Materials 729 | -9/Materials | Reached level 2 745 | -9/Materials | Upgraded with Propulsion slot (x1) 745 | -9/Materials | Upgraded with Utility slot (x1) 819 | -9/Materials | Reached level 3 823 | -9/Materials | Upgraded with Utility slot (x1) 1117 | -9/Materials | Reached level 4 1150 | -9/Materials | Discovered new exit (range 17) 1162 | -9/Materials | Destroyed 7 combat bots 1173 | -9/Materials | Identified exit to Materials 1174 | -9/Materials | Entered another Materials area 1176 | -8/Materials | Reached level 5 1197 | -8/Materials | Self-destructed Last Messages --------------- 01150_ Acquired 7 matter. 01150_ EXIT=FOUND 01150_ U-05 Engineer lays Concrete. 01151_ O-16 Technician destroyed. 01152_ K-01 Serf collects debris. 01154_ Acquired 14 matter. 01155_ K-01 Serf collects debris. 01159_ The unstable cave ceiling collapses. 01159_ K-01 Serf collects debris. 01163_ Y-45 Defender destroyed. 01165_ K-01 Serf collects debris. 01173_ EXIT=IDENTIFIED: MATERIALS LOCATION=MATERIALS GOAL=ESCAPE 01176_ Reached level 5. 01178_ Upgraded: Inventory Capacity (+1) 01178_ Upgraded: Sight Range (+1) 01178_ Upgraded: Ranged Accuracy (+5) 01186_ Connecting with Terminal... 01194_ W-25 Informer sends out distress signal. Map ----- +----------------------------------------------------+ | | | | | | | | | | | | | | | | | | | | | | | | | | | | | | | | | ???????????????????#############?????????????????? | | ???????????????????# """"" #?????????????????? | | ???????????????????# !!! ""T"" #?????????????????? | | ???????????????????# !!! #?????????????????? | | ???????????????##### !!! """ #?????????????????? | | ???????????????# # """ #?????????????????? | | ???????????????# # """ #?????????????????? | | ???????????????# # #?????????????????? | | ???????????????# ###+###########???????????????? | | ???????????????# @ #???????????????? | | ???????????????# #???????????????? | | ???????????????# #???????????????? | | ???????????????############### #???????????????? | | ??????????????????????????????? #???????????????? | | ????????????????????????????????? ??????????????? | | ?????????????????????????????????? w ????????????? | | ????????????????????????????????????##???????????? | | ?????????????????????????????????????????????????? | | ?????????????????????????????????????????????????? | | ?????????????????????????????????????????????????? | | ?????????????????????????????????????????????????? | | ?????????????????????????????????????????????????? | | ?????????????????????????????????????????????????? | | ?????????????????????????????????????????????????? | | ?????????????????????????????????????????????????? | | ?????????????????????????????????????????????????? | | ?????????????????????????????????????????????????? | | ?????????????????????????????????????????????????? | | ?????????????????????????????????????????????????? | | ?????????????????????????????????????????????????? | | ?????????????????????????????????????????????????? | | ?????????????????????????????????????????????????? | | ?????????????????????????????????????????????????? | | ?????????????????????????????????????????????????? | +----------------------------------------------------+ Best States ------------- Heat Dissipation 41 Energy Generation 10 Energy Capacity 250 Matter Stores 300 Matter Capacity 550 Sight Range 18 Robot Scan Range 14 Terrain Scan Density 110 Armor Coverage 150 Evasion (%) 44 Item Schematics ----------------- None Robot Schematics ------------------ None Fabricated ------------ Nothing Alien Tech Used ----------------- None Achievements -------------- None Challenges ------------ None RPGLIKE | -11 -10 -10 -9 -8 --------- Run | Jun Mat Min Mat Mat Levels Raised 4 | . . . 3 1 XP Earned 9865 | 3000 360 1100 3905 1500 XP Spent 8950 | 3000 . . 4500 1450 Upgrades 31 | 9 . . 19 3 Propulsion Slot 1 | . . . 1 . Utility Slot 2 | . . . 2 . Weapon Slot 3 | 3 . . . . Core Integrity 5 | 1 . . 4 . Heat Dissipation 1 | . . . 1 . Matter Storage 5 | . . . 5 . Inventory Capacity 3 | 1 . . 1 1 Sight Range 2 | 1 . . . 1 Sensor Range 7 | 3 . . 4 . Terrain Scan Density 1 | . . . 1 . Ranged Accuracy 1 | . . . . 1 Protomatter Created 219 | . 42 39 138 . Integrity Restored 286 | . 81 59 146 . Core 254 | . 62 46 146 . Parts 32 | . 19 13 . . Protomatter Decayed 183 | . 13 78 92 . Game ------ Seed HackingKineticInterpreter Manual? 0 Play Time 00:12:17 Cumulative 28.0 hours Start 2023.11.30 @ 14:17:42 End 2024.02.13 @ 22:29:24 Sessions 2 Manual Loads 0 Difficulty Rogue Special Mode Winter2019/RPGLIKE Game No. 43 Rogue 20 Adventurer 23 Explorer 0 Win Type - Total 1 Types 1/0/0/0/0/0/0/0/0 Lore% 46 Gallery% 42 Achievement% 41 Wizard Run 0 Options --------- ASCII 0 Keyboard 0 Movement Mouse Keybinds 0 Fullscreen 2 Font 18/Terminus Map View 76x50 Tactical HUD 1 Map Filters NONE Filters NONE Steam 1 RUN: 49d3d38c-3188-4b24-91b8-32d5eb413ed6